[Event "Early-Titled-Tuesday-Blitz-September-12-2023"]
[Site "Chess.com"]
[Date "2023.09.12"]
[Round "4"]
[White "Jackalhead_Anubis"]
[Black "RebecaJimnz"]
[Result "1/2-1/2"]
[WhiteElo "2385"]
[BlackElo "2209"]
[TimeControl "180+1"]
[EndTime "8:39:42 PDT"]
[Termination "Game drawn - insufficient material"]

1. e4 {[%clk 0:03:00.9]} 1... c5 {[%clk 0:02:59]} 2. Nf3 {[%clk 0:03:01.5]} 2...
Nc6 {[%clk 0:02:59.5]} 3. Bb5 {[%clk 0:02:59.9]} 3... g6 {[%clk 0:02:59.4]} 4.
O-O {[%clk 0:02:59.1]} 4... Bg7 {[%clk 0:02:59.4]} 5. c3 {[%clk 0:02:59]} 5...
Nf6 {[%clk 0:02:59.6]} 6. Re1 {[%clk 0:02:54.1]} 6... O-O {[%clk 0:02:59.6]} 7.
d4 {[%clk 0:02:53.6]} 7... cxd4 {[%clk 0:02:58]} 8. cxd4 {[%clk 0:02:54.5]} 8...
d5 {[%clk 0:02:58.1]} 9. e5 {[%clk 0:02:54.7]} 9... Ne4 {[%clk 0:02:58.1]} 10.
Nc3 {[%clk 0:02:52.8]} 10... Nxc3 {[%clk 0:02:57]} 11. bxc3 {[%clk 0:02:52.4]}
11... Bg4 {[%clk 0:02:55.8]} 12. h3 {[%clk 0:02:51.2]} 12... Bxf3 {[%clk
0:02:55.7]} 13. Qxf3 {[%clk 0:02:52.1]} 13... e6 {[%clk 0:02:56.2]} 14. a4
{[%clk 0:02:48.7]} 14... Rc8 {[%clk 0:02:55]} 15. Ba3 {[%clk 0:02:47.2]} 15...
Re8 {[%clk 0:02:51]} 16. Bc5 {[%clk 0:02:46.1]} 16... b6 {[%clk 0:02:40.2]} 17.
Bd6 {[%clk 0:02:42.4]} 17... Qd7 {[%clk 0:02:27.1]} 18. c4 {[%clk 0:02:38]}
18... dxc4 {[%clk 0:02:19.5]} 19. Rac1 {[%clk 0:02:09.1]} 19... a6 {[%clk
0:02:03.9]} 20. Bxa6 {[%clk 0:02:04.8]} 20... Nxd4 {[%clk 0:02:03.5]} 21. Qe4
{[%clk 0:01:57.6]} 21... Ra8 {[%clk 0:01:34.7]} 22. Bxc4 {[%clk 0:01:53.1]}
22... Rxa4 {[%clk 0:01:24.1]} 23. Qxd4 {[%clk 0:01:15.1]} 23... b5 {[%clk
0:01:24.2]} 24. Bxe6 {[%clk 0:01:07.4]} 24... Qxe6 {[%clk 0:00:46.7]} 25. Qc5
{[%clk 0:01:04.3]} 25... Rc4 {[%clk 0:00:35.3]} 26. Qxb5 {[%clk 0:01:00.7]}
26... Rxc1 {[%clk 0:00:34.9]} 27. Rxc1 {[%clk 0:00:59.9]} 27... Bxe5 {[%clk
0:00:23]} 28. Bxe5 {[%clk 0:00:53.3]} 28... Qxe5 {[%clk 0:00:23.2]} 29. Qxe5
{[%clk 0:00:54.1]} 29... Rxe5 {[%clk 0:00:23.8]} 30. f3 {[%clk 0:00:53.5]} 30...
Kg7 {[%clk 0:00:23.6]} 31. Kf2 {[%clk 0:00:53.4]} 31... Ra5 {[%clk 0:00:23.2]}
32. g4 {[%clk 0:00:50.3]} 32... h5 {[%clk 0:00:19.7]} 33. Kg3 {[%clk 0:00:49]}
33... hxg4 {[%clk 0:00:19.7]} 34. hxg4 {[%clk 0:00:46.8]} 34... g5 {[%clk
0:00:19.4]} 35. Rc6 {[%clk 0:00:46.5]} 35... f6 {[%clk 0:00:19.7]} 36. Kf2
{[%clk 0:00:44.5]} 36... Ra3 {[%clk 0:00:19.4]} 37. Rd6 {[%clk 0:00:41.7]} 37...
Kg6 {[%clk 0:00:19.6]} 38. Ke2 {[%clk 0:00:41.2]} 38... Rb3 {[%clk 0:00:19.6]}
39. Re6 {[%clk 0:00:34.4]} 39... Ra3 {[%clk 0:00:19.4]} 40. Kf2 {[%clk
0:00:34.3]} 40... Rb3 {[%clk 0:00:19.4]} 41. Re8 {[%clk 0:00:34.4]} 41... Ra3
{[%clk 0:00:19.6]} 42. Rg8+ {[%clk 0:00:34.1]} 42... Kf7 {[%clk 0:00:20.1]} 43.
Rd8 {[%clk 0:00:33]} 43... Rb3 {[%clk 0:00:20.4]} 44. Ke2 {[%clk 0:00:33.2]}
44... Kg6 {[%clk 0:00:20.4]} 45. Rg8+ {[%clk 0:00:33.2]} 45... Kf7 {[%clk
0:00:20.6]} 46. Rd8 {[%clk 0:00:34]} 46... Ra3 {[%clk 0:00:21]} 47. Rd3 {[%clk
0:00:34.4]} 47... Ra2+ {[%clk 0:00:19.3]} 48. Ke3 {[%clk 0:00:34.6]} 48... Ra4
{[%clk 0:00:19.7]} 49. Rd4 {[%clk 0:00:34.2]} 49... Ra3+ {[%clk 0:00:20.1]} 50.
Ke4 {[%clk 0:00:34.3]} 50... Kg6 {[%clk 0:00:20.3]} 51. Rd3 {[%clk 0:00:34.3]}
51... Ra4+ {[%clk 0:00:20.5]} 52. Kd5 {[%clk 0:00:34.6]} 52... Rf4 {[%clk
0:00:17.3]} 53. Ke6 {[%clk 0:00:33.3]} 53... f5 {[%clk 0:00:17.4]} 54. gxf5+
{[%clk 0:00:29.2]} 54... Rxf5 {[%clk 0:00:18.3]} 55. Re3 {[%clk 0:00:28.9]}
55... Rf6+ {[%clk 0:00:18.6]} 56. Ke7 {[%clk 0:00:28.8]} 56... Rf7+ {[%clk
0:00:19]} 57. Kd6 {[%clk 0:00:27]} 57... Kf5 {[%clk 0:00:16.4]} 58. Re4 {[%clk
0:00:25.6]} 58... Ra7 {[%clk 0:00:15.4]} 59. Rb4 {[%clk 0:00:20.6]} 59... Ra3
{[%clk 0:00:14.8]} 60. Rb5+ {[%clk 0:00:15.8]} 60... Kf4 {[%clk 0:00:15.1]} 61.
Ke6 {[%clk 0:00:16.4]} 61... Rxf3 {[%clk 0:00:14.6]} 62. Kf6 {[%clk 0:00:16]}
62... g4 {[%clk 0:00:14.5]} 63. Rb4+ {[%clk 0:00:12.5]} 63... Kg3+ {[%clk
0:00:13.6]} 64. Kg5 {[%clk 0:00:13.2]} 64... Ra3 {[%clk 0:00:09.6]} 65. Rxg4+
{[%clk 0:00:13.1]} 65... Kf3 {[%clk 0:00:10]} 66. Kh4 {[%clk 0:00:12.6]} 66...
Re3 {[%clk 0:00:09]} 67. Rg3+ {[%clk 0:00:12.8]} 67... Ke2 {[%clk 0:00:09.3]}
68. Rxe3+ {[%clk 0:00:13.7]} 68... Kxe3 {[%clk 0:00:10.2]} 1/2-1/2

[Event "Early-Titled-Tuesday-Blitz-September-12-2023"]
[Site "Chess.com"]
[Date "2023.09.12"]
[Round "4"]
[White "Rosh1610"]
[Black "MANOJ_MISHRA123"]
[Result "1-0"]
[WhiteElo "2434"]
[BlackElo "2216"]
[TimeControl "180+1"]
[EndTime "8:39:44 PDT"]
[Termination "Rosh1610 won on time"]

1. e4 {[%clk 0:02:54.5]} 1... c6 {[%clk 0:02:59.7]} 2. Nc3 {[%clk 0:02:53.9]}
2... d5 {[%clk 0:02:59.9]} 3. Nf3 {[%clk 0:02:54.3]} 3... g6 {[%clk 0:02:59.5]}
4. d4 {[%clk 0:02:53.1]} 4... Bg7 {[%clk 0:02:57.6]} 5. Bd3 {[%clk 0:02:53.2]}
5... Bg4 {[%clk 0:02:56]} 6. e5 {[%clk 0:02:52]} 6... e6 {[%clk 0:02:54.7]} 7.
h3 {[%clk 0:02:52]} 7... Bxf3 {[%clk 0:02:54.5]} 8. Qxf3 {[%clk 0:02:52.9]} 8...
Ne7 {[%clk 0:02:52.6]} 9. Bg5 {[%clk 0:02:51.5]} 9... a6 {[%clk 0:02:47.3]} 10.
g4 {[%clk 0:02:37.1]} 10... Nd7 {[%clk 0:02:41.4]} 11. Ne2 {[%clk 0:02:35.7]}
11... c5 {[%clk 0:02:41.2]} 12. c3 {[%clk 0:02:35.5]} 12... Qb6 {[%clk
0:02:35.5]} 13. b3 {[%clk 0:02:34.4]} 13... cxd4 {[%clk 0:02:30.8]} 14. cxd4
{[%clk 0:02:35.3]} 14... Nc6 {[%clk 0:02:26.5]} 15. Be3 {[%clk 0:02:28.6]} 15...
Bxe5 {[%clk 0:01:55.8]} 16. O-O {[%clk 0:01:45.4]} 16... Nxd4 {[%clk 0:01:50.2]}
17. Nxd4 {[%clk 0:01:44.8]} 17... Bxd4 {[%clk 0:01:50.2]} 18. Bxd4 {[%clk
0:01:44.6]} 18... Qxd4 {[%clk 0:01:50.3]} 19. Rad1 {[%clk 0:01:44.8]} 19... Qg7
{[%clk 0:01:43.1]} 20. Qg3 {[%clk 0:01:34.6]} 20... O-O {[%clk 0:01:41]} 21.
Rfe1 {[%clk 0:01:34]} 21... Rac8 {[%clk 0:01:37.9]} 22. Bb1 {[%clk 0:01:33]}
22... Rc3 {[%clk 0:01:31.2]} 23. Qd6 {[%clk 0:01:32.5]} 23... Nb8 {[%clk
0:01:24.1]} 24. Kg2 {[%clk 0:01:07]} 24... Rfc8 {[%clk 0:01:20.7]} 25. Bd3
{[%clk 0:01:03.8]} 25... Qf8 {[%clk 0:01:08.4]} 26. Qf4 {[%clk 0:01:01]} 26...
Nc6 {[%clk 0:00:51.6]} 27. Be2 {[%clk 0:00:58]} 27... e5 {[%clk 0:00:43.9]} 28.
Qf6 {[%clk 0:00:55.3]} 28... d4 {[%clk 0:00:36.1]} 29. Bf3 {[%clk 0:00:54.3]}
29... Qg7 {[%clk 0:00:31.1]} 30. Qd6 {[%clk 0:00:43.1]} 30... Qh6 {[%clk
0:00:20.9]} 31. Qd7 {[%clk 0:00:29.4]} 31... Rd8 {[%clk 0:00:15.5]} 32. Qxb7
{[%clk 0:00:26.2]} 32... Rxf3 {[%clk 0:00:14.9]} 33. Kxf3 {[%clk 0:00:25.8]}
33... Qxh3+ {[%clk 0:00:14.7]} 34. Ke2 {[%clk 0:00:23.9]} 34... Qxg4+ {[%clk
0:00:14.7]} 35. Kd2 {[%clk 0:00:23.8]} 35... Qf3 {[%clk 0:00:12.9]} 36. Kc1
{[%clk 0:00:21.6]} 36... d3 {[%clk 0:00:11.5]} 37. Rd2 {[%clk 0:00:18.9]} 37...
Qd5 {[%clk 0:00:09.3]} 38. Kb1 {[%clk 0:00:18.2]} 38... e4 {[%clk 0:00:09.5]}
39. Rc1 {[%clk 0:00:17.1]} 39... Nb4 {[%clk 0:00:08.5]} 40. Qxd5 {[%clk
0:00:17.1]} 40... Rxd5 {[%clk 0:00:09]} 41. Rc4 {[%clk 0:00:16.1]} 41... Nc2
{[%clk 0:00:06.6]} 42. Rxe4 {[%clk 0:00:14.5]} 42... Na3+ {[%clk 0:00:06.8]} 43.
Kb2 {[%clk 0:00:14.2]} 43... Nb5 {[%clk 0:00:06.9]} 44. Re3 {[%clk 0:00:14]}
44... f5 {[%clk 0:00:06]} 45. Rexd3 {[%clk 0:00:14.2]} 45... Re5 {[%clk
0:00:05.7]} 46. Rd8+ {[%clk 0:00:13.3]} 46... Kg7 {[%clk 0:00:06.1]} 47. a4
{[%clk 0:00:13.5]} 47... Nc7 {[%clk 0:00:05.5]} 48. R8d7+ {[%clk 0:00:12.6]}
48... Kf6 {[%clk 0:00:05.5]} 49. Rxc7 {[%clk 0:00:12.9]} 49... h5 {[%clk
0:00:05.7]} 50. Rc6+ {[%clk 0:00:13]} 50... Kg5 {[%clk 0:00:05.7]} 51. Rdd6
{[%clk 0:00:12.1]} 51... h4 {[%clk 0:00:06.6]} 52. Rxg6+ {[%clk 0:00:11.7]}
52... Kf4 {[%clk 0:00:07.5]} 53. Rc4+ {[%clk 0:00:11.8]} 53... Kf3 {[%clk
0:00:07.4]} 54. Rxh4 {[%clk 0:00:12.2]} 54... Kxf2 {[%clk 0:00:07.2]} 55. Rf4+
{[%clk 0:00:11.3]} 55... Ke3 {[%clk 0:00:07.4]} 56. Rxf5 {[%clk 0:00:11.7]}
56... Rxf5 {[%clk 0:00:07.4]} 57. Rxa6 {[%clk 0:00:12.4]} 57... Kd4 {[%clk
0:00:07.6]} 58. Rc6 {[%clk 0:00:12.6]} 58... Rf2+ {[%clk 0:00:05.4]} 59. Rc2
{[%clk 0:00:12.9]} 59... Rf3 {[%clk 0:00:03.5]} 60. Ka3 {[%clk 0:00:12.1]} 60...
Kd3 {[%clk 0:00:02.9]} 61. Rc4 {[%clk 0:00:11.5]} 1-0

[Event "Early-Titled-Tuesday-Blitz-September-12-2023"]
[Site "Chess.com"]
[Date "2023.09.12"]
[Round "4"]
[White "Lennis93"]
[Black "Just_Lucky_1"]
[Result "1-0"]
[WhiteElo "2748"]
[BlackElo "2539"]
[TimeControl "180+1"]
[EndTime "8:39:57 PDT"]
[Termination "Lennis93 won by resignation"]

1. Nf3 {[%clk 0:03:00.9]} 1... Nf6 {[%clk 0:02:59.3]} 2. c4 {[%clk 0:03:01.5]}
2... e6 {[%clk 0:03:00.2]} 3. Nc3 {[%clk 0:03:01.5]} 3... d5 {[%clk 0:03:01.1]}
4. cxd5 {[%clk 0:03:01.6]} 4... exd5 {[%clk 0:03:02]} 5. d4 {[%clk 0:03:02.2]}
5... c6 {[%clk 0:03:02.4]} 6. Bg5 {[%clk 0:03:02.7]} 6... Nbd7 {[%clk
0:03:03.1]} 7. e3 {[%clk 0:03:03.1]} 7... Be7 {[%clk 0:03:03.7]} 8. Bd3 {[%clk
0:03:03.3]} 8... O-O {[%clk 0:03:04.4]} 9. Qc2 {[%clk 0:03:03.7]} 9... Re8
{[%clk 0:03:05.1]} 10. O-O-O {[%clk 0:03:03.2]} 10... Nf8 {[%clk 0:03:05]} 11.
Ne5 {[%clk 0:03:01.7]} 11... N6d7 {[%clk 0:02:33.6]} 12. Bf4 {[%clk 0:02:50.7]}
12... a5 {[%clk 0:02:27.9]} 13. h4 {[%clk 0:02:50.1]} 13... a4 {[%clk
0:02:20.5]} 14. h5 {[%clk 0:02:50.3]} 14... Qa5 {[%clk 0:02:06.1]} 15. h6 {[%clk
0:02:49.7]} 15... g6 {[%clk 0:02:06.2]} 16. a3 {[%clk 0:02:42.3]} 16... Nxe5
{[%clk 0:02:03.5]} 17. Bxe5 {[%clk 0:02:39.2]} 17... b5 {[%clk 0:02:03.7]} 18.
Na2 {[%clk 0:02:29.3]} 18... b4 {[%clk 0:01:58.7]} 19. Nxb4 {[%clk 0:02:27.4]}
19... Bxb4 {[%clk 0:01:57.9]} 20. axb4 {[%clk 0:02:28.3]} 20... Qxb4 {[%clk
0:01:57]} 21. Qc3 {[%clk 0:01:50.3]} 21... Qb6 {[%clk 0:01:49.5]} 22. Bd6 {[%clk
0:01:39.7]} 22... Ba6 {[%clk 0:01:37.9]} 23. Bc5 {[%clk 0:01:37.4]} 23... Qb7
{[%clk 0:01:38.4]} 24. Bc2 {[%clk 0:01:35.8]} 24... Bc4 {[%clk 0:01:33.5]} 25.
e4 {[%clk 0:01:31.9]} 25... Ne6 {[%clk 0:01:32]} 26. Ba3 {[%clk 0:01:30.5]}
26... Nf4 {[%clk 0:01:28.1]} 27. Kb1 {[%clk 0:01:28.9]} 27... Rab8 {[%clk
0:01:26.8]} 28. Rd2 {[%clk 0:01:21]} 28... Bb3 {[%clk 0:01:21.5]} 29. e5 {[%clk
0:01:18.5]} 29... Bxc2+ {[%clk 0:01:13.9]} 30. Rxc2 {[%clk 0:01:19.4]} 30... Qb3
{[%clk 0:00:57]} 31. Qxb3 {[%clk 0:01:00.9]} 31... Rxb3 {[%clk 0:00:57.9]} 32.
Rxc6 {[%clk 0:00:54.5]} 32... Ne2 {[%clk 0:00:55.3]} 33. Rd1 {[%clk 0:00:49.7]}
33... Reb8 {[%clk 0:00:54.9]} 34. Rd2 {[%clk 0:00:44.3]} 34... Nf4 {[%clk
0:00:48.3]} 35. Kc2 {[%clk 0:00:36.9]} 35... Ne6 {[%clk 0:00:46.3]} 36. g3
{[%clk 0:00:32.4]} 36... Ng5 {[%clk 0:00:40.6]} 37. Rd3 {[%clk 0:00:23.6]} 37...
Ne4 {[%clk 0:00:17.8]} 38. Rxb3 {[%clk 0:00:23.7]} 38... axb3+ {[%clk
0:00:18.7]} 39. Kd3 {[%clk 0:00:22.3]} 39... Nxf2+ {[%clk 0:00:19.2]} 40. Ke3
{[%clk 0:00:22.8]} 40... Ng4+ {[%clk 0:00:19.8]} 41. Kf4 {[%clk 0:00:22.4]}
41... Nxh6 {[%clk 0:00:20.2]} 42. g4 {[%clk 0:00:23.1]} 42... Kg7 {[%clk
0:00:18.6]} 43. Rc5 {[%clk 0:00:22.4]} 43... Rd8 {[%clk 0:00:14.6]} 44. Rb5
{[%clk 0:00:22.4]} 44... Rc8 {[%clk 0:00:12]} 45. Be7 {[%clk 0:00:22.1]} 45...
Ng8 {[%clk 0:00:10.8]} 46. Bc5 {[%clk 0:00:19.8]} 46... Ra8 {[%clk 0:00:08.7]}
47. Rxb3 {[%clk 0:00:20.1]} 47... Ra1 {[%clk 0:00:09.4]} 48. Rb7 {[%clk
0:00:18.8]} 48... Rf1+ {[%clk 0:00:08.3]} 49. Ke3 {[%clk 0:00:19.2]} 49... Rg1
{[%clk 0:00:08]} 50. Kf3 {[%clk 0:00:19.3]} 50... h5 {[%clk 0:00:08]} 51. gxh5
{[%clk 0:00:18.8]} 51... gxh5 {[%clk 0:00:08.9]} 52. Kf2 {[%clk 0:00:15.3]}
52... Rg6 {[%clk 0:00:07.9]} 53. Rb3 {[%clk 0:00:15.4]} 53... Nh6 {[%clk
0:00:07.3]} 54. Rh3 {[%clk 0:00:15.7]} 54... Ng4+ {[%clk 0:00:04.7]} 55. Kf3
{[%clk 0:00:15.3]} 55... Rh6 {[%clk 0:00:04.4]} 56. b4 {[%clk 0:00:15]} 56...
Rh8 {[%clk 0:00:02.1]} 57. b5 {[%clk 0:00:15.4]} 57... Kg6 {[%clk 0:00:02.6]}
58. b6 {[%clk 0:00:15.9]} 58... Rb8 {[%clk 0:00:03.2]} 59. Kf4 {[%clk
0:00:15.7]} 59... Nh6 {[%clk 0:00:03.5]} 60. Rb3 {[%clk 0:00:15.7]} 60... Rb7
{[%clk 0:00:02.6]} 61. Ra3 {[%clk 0:00:13.7]} 61... Nf5 {[%clk 0:00:02.5]} 62.
Ra7 {[%clk 0:00:14.3]} 62... Rb8 {[%clk 0:00:02.9]} 63. b7 {[%clk 0:00:14.5]}
63... h4 {[%clk 0:00:03]} 64. Kg4 {[%clk 0:00:14.8]} 64... h3 {[%clk 0:00:03.3]}
65. Kxh3 {[%clk 0:00:13.8]} 65... Kg5 {[%clk 0:00:04.2]} 66. Kg2 {[%clk
0:00:08.9]} 66... Kf4 {[%clk 0:00:04.4]} 67. Bd6 {[%clk 0:00:09.5]} 67... Nxd6
{[%clk 0:00:02.7]} 68. exd6 {[%clk 0:00:10.4]} 68... Kf5 {[%clk 0:00:03.3]} 69.
d7 {[%clk 0:00:11]} 69... Ke6 {[%clk 0:00:03.9]} 70. Ra8 {[%clk 0:00:11.7]}
70... Kxd7 {[%clk 0:00:01.9]} 71. Rxb8 {[%clk 0:00:11.3]} 71... Kc7 {[%clk
0:00:02.8]} 72. Rf8 {[%clk 0:00:10.8]} 72... Kxb7 {[%clk 0:00:03.7]} 73. Rxf7+
{[%clk 0:00:11.3]} 73... Kc6 {[%clk 0:00:04.6]} 74. Kf3 {[%clk 0:00:11.4]} 74...
Kb5 {[%clk 0:00:05.5]} 75. Kf4 {[%clk 0:00:11.8]} 75... Kc4 {[%clk 0:00:05.9]}
76. Ke5 {[%clk 0:00:12.5]} 1-0

[Event "Early-Titled-Tuesday-Blitz-September-12-2023"]
[Site "Chess.com"]
[Date "2023.09.12"]
[Round "4"]
[White "Firouzja2003"]
[Black "PLAYER_2006_M"]
[Result "0-1"]
[WhiteElo "3057"]
[BlackElo "2877"]
[TimeControl "180+1"]
[EndTime "8:40:03 PDT"]
[Termination "PLAYER_2006_M won on time"]

1. e4 {[%clk 0:02:53.9]} 1... e5 {[%clk 0:02:59.6]} 2. Nf3 {[%clk 0:02:54]} 2...
Nc6 {[%clk 0:03:00.1]} 3. Bb5 {[%clk 0:02:54.7]} 3... a6 {[%clk 0:03:00.3]} 4.
Ba4 {[%clk 0:02:42.6]} 4... Nf6 {[%clk 0:02:59.8]} 5. O-O {[%clk 0:02:41.5]}
5... Nxe4 {[%clk 0:02:58.1]} 6. d4 {[%clk 0:02:40.8]} 6... b5 {[%clk 0:02:58.6]}
7. Bb3 {[%clk 0:02:40.5]} 7... d5 {[%clk 0:02:59.3]} 8. dxe5 {[%clk 0:02:40.9]}
8... Be6 {[%clk 0:02:59.8]} 9. Be3 {[%clk 0:02:40.5]} 9... Be7 {[%clk
0:02:57.9]} 10. c3 {[%clk 0:02:38.8]} 10... O-O {[%clk 0:02:58.1]} 11. Re1
{[%clk 0:02:33.6]} 11... f6 {[%clk 0:02:22.4]} 12. exf6 {[%clk 0:02:27.2]} 12...
Bxf6 {[%clk 0:02:20.3]} 13. Nbd2 {[%clk 0:02:26.1]} 13... Nxd2 {[%clk
0:02:18.7]} 14. Qxd2 {[%clk 0:02:26.1]} 14... Bf7 {[%clk 0:02:12.9]} 15. Bc5
{[%clk 0:02:23.5]} 15... Re8 {[%clk 0:01:52.9]} 16. Rxe8+ {[%clk 0:02:21.1]}
16... Qxe8 {[%clk 0:01:53.8]} 17. Bxd5 {[%clk 0:02:20.3]} 17... Rd8 {[%clk
0:01:53.9]} 18. Bxf7+ {[%clk 0:02:20.5]} 18... Qxf7 {[%clk 0:01:52.8]} 19. Qf4
{[%clk 0:02:15.8]} 19... Qxa2 {[%clk 0:01:49.5]} 20. Re1 {[%clk 0:01:55.5]}
20... Qd5 {[%clk 0:01:44.3]} 21. Qe3 {[%clk 0:01:28.5]} 21... Ne5 {[%clk
0:01:35.3]} 22. Nxe5 {[%clk 0:01:28.3]} 22... Bxe5 {[%clk 0:01:27.8]} 23. g3
{[%clk 0:01:20.3]} 23... Bf6 {[%clk 0:01:25.1]} 24. Qe6+ {[%clk 0:01:16.3]}
24... Qxe6 {[%clk 0:01:21.6]} 25. Rxe6 {[%clk 0:01:17.2]} 25... Rd2 {[%clk
0:01:17.5]} 26. b4 {[%clk 0:01:09.5]} 26... Bxc3 {[%clk 0:01:12.2]} 27. Rxa6
{[%clk 0:01:09.4]} 27... Bd4 {[%clk 0:01:03]} 28. Ra8+ {[%clk 0:00:41.5]} 28...
Kf7 {[%clk 0:01:02.8]} 29. Ra7 {[%clk 0:00:40.5]} 29... Bxc5 {[%clk 0:00:48.3]}
30. bxc5 {[%clk 0:00:40.8]} 30... Rd7 {[%clk 0:00:48.9]} 31. Rb7 {[%clk
0:00:40.9]} 31... Ke6 {[%clk 0:00:42.8]} 32. Rxb5 {[%clk 0:00:41.1]} 32... Kd5
{[%clk 0:00:34.3]} 33. Ra5 {[%clk 0:00:41.3]} 33... Kc6 {[%clk 0:00:29.3]} 34.
f4 {[%clk 0:00:35.7]} 34... Rd5 {[%clk 0:00:29.5]} 35. Ra8 {[%clk 0:00:29.2]}
35... Kxc5 {[%clk 0:00:29.6]} 36. Rh8 {[%clk 0:00:27.1]} 36... h6 {[%clk
0:00:28.6]} 37. Rh7 {[%clk 0:00:24.8]} 37... Rd7 {[%clk 0:00:29]} 38. f5 {[%clk
0:00:25.3]} 38... Kd6 {[%clk 0:00:19]} 39. f6 {[%clk 0:00:19.5]} 39... gxf6
{[%clk 0:00:19.4]} 40. Rxh6 {[%clk 0:00:20.2]} 40... Ke6 {[%clk 0:00:18.6]} 41.
Rh5 {[%clk 0:00:17.7]} 41... Rd5 {[%clk 0:00:18.6]} 42. Rh8 {[%clk 0:00:12]}
42... c5 {[%clk 0:00:16.1]} 43. Kf2 {[%clk 0:00:12.7]} 43... Rd2+ {[%clk
0:00:15.1]} 44. Kf3 {[%clk 0:00:12.9]} 44... c4 {[%clk 0:00:14.9]} 45. h4 {[%clk
0:00:08.3]} 45... c3 {[%clk 0:00:14.8]} 46. Rc8 {[%clk 0:00:09]} 46... c2 {[%clk
0:00:14.8]} 47. h5 {[%clk 0:00:08.8]} 47... Rh2 {[%clk 0:00:14.2]} 48. g4 {[%clk
0:00:06.4]} 48... Kd7 {[%clk 0:00:14.5]} 49. Rc4 {[%clk 0:00:04.9]} 49... Ke6
{[%clk 0:00:13.6]} 50. Kg3 {[%clk 0:00:05.3]} 50... Rd2 {[%clk 0:00:13.6]} 51.
Rc8 {[%clk 0:00:02.9]} 51... Kf7 {[%clk 0:00:13.3]} 52. Rc7+ {[%clk 0:00:02.8]}
52... Kg8 {[%clk 0:00:12.1]} 53. Kf4 {[%clk 0:00:03]} 53... Rf2+ {[%clk
0:00:10.3]} 54. Ke3 {[%clk 0:00:03.4]} 54... Rh2 {[%clk 0:00:08.4]} 55. Ke4
{[%clk 0:00:03.6]} 55... Rf2 {[%clk 0:00:08.8]} 56. Ke3 {[%clk 0:00:02.5]} 56...
Rh2 {[%clk 0:00:08.9]} 57. Kf3 {[%clk 0:00:03.1]} 57... Rd2 {[%clk 0:00:09.1]}
58. Rc6 {[%clk 0:00:03.1]} 58... Kg7 {[%clk 0:00:09.1]} 59. Ke4 {[%clk
0:00:03.4]} 59... Rf2 {[%clk 0:00:08.9]} 60. Ke3 {[%clk 0:00:03.9]} 60... Rh2
{[%clk 0:00:08.9]} 61. Kf4 {[%clk 0:00:04.2]} 61... Rf2+ {[%clk 0:00:08.5]} 62.
Kg3 {[%clk 0:00:04.7]} 62... Rd2 {[%clk 0:00:08.9]} 63. Rc7+ {[%clk 0:00:05.1]}
63... Kg8 {[%clk 0:00:09.5]} 64. Kf4 {[%clk 0:00:03.3]} 64... Rf2+ {[%clk
0:00:07.8]} 65. Ke4 {[%clk 0:00:03.9]} 65... Kh8 {[%clk 0:00:04.7]} 66. Kd5
{[%clk 0:00:03.3]} 66... Re2 {[%clk 0:00:04.9]} 67. Kd6 {[%clk 0:00:02.5]} 67...
Kg8 {[%clk 0:00:05.2]} 68. Kd5 {[%clk 0:00:02.7]} 68... Kh8 {[%clk 0:00:05.1]}
69. Kd4 {[%clk 0:00:03.2]} 69... Kg8 {[%clk 0:00:04.3]} 70. Kd3 {[%clk
0:00:02.1]} 70... Rg2 {[%clk 0:00:04.5]} 0-1